bitfinex/quotes_ETHUSD_20241116
["timestamp","ask_amount","ask_price","bid_price","bid_amount"]
[1731791546492,3.32259,3153.8,3153.5,0.6218145]
[1731791547768,3.38601007,3153.8,3153.5,0.6218145]
[1731791547965,3.32259,3153.8,3153.5,0.6218145]
[1731791548194,0.1518,3153.8,3153.5,0.6218145]
[1731791548418,0.1518,3154.2,3153.6,3.17088]
[1731791548732,3.17048,3154.1,3153.5,3.7928845]
[1731791548885,3.17048,3154.1,3153.6,0.77278545]
[1731791549432,3.17048,3154.1,3153.6,3.94375545]
[1731791549731,0.1518,3154.2,3153.6,3.94375545]
[1731791549904,3.32217,3154.2,3153.6,3.94375545]
[1731791550392,3.32217,3154.2,3153.8,3.1707]
[1731791550393,0.1518,3154.2,3153.8,3.1707]
[1731791551023,0.1518,3154.2,3153.9,3.23406021]
[1731791551229,0.1518,3154.5,3153.9,0.06341021]
[1731791551395,0.1518,3154.5,3154.0,3.17056]
[1731791551922,0.21522007,3154.5,3154.0,3.17056]
[1731791552787,0.21522007,3154.5,3154.1,3.17047]
[1731791553125,0.21522007,3154.5,3154.0,3.17056]
[1731791553332,3.38529007,3154.5,3154.0,3.17056]
[1731791555139,3.23353007,3154.5,3153.6,3.1709]
[1731791555287,3.23353007,3154.5,3153.7,3.1708]
[1731791555288,0.1518,3154.2,3153.7,3.1708]
[1731791556691,0.21522007,3154.2,3153.7,3.17087]
[1731791557042,3.38566007,3154.2,3153.6,0.75565145]
[1731791557337,3.17054,3154.1,3153.5,3.6218145]
[1731791557632,0.1518,3153.7,3153.5,0.6218145]
[1731791558239,0.1518,3153.7,3153.3,3.17127]
[1731791558691,3.32268,3153.7,3153.1,3.97731]
[1731791558892,3.32268,3153.7,3153.2,3.17135]
[1731791558893,0.1518,3153.7,3153.2,3.17135]
[1731791559420,3.38580007,3154.0,3153.2,3.17138]
[1731791559734,3.38580007,3154.0,3153.4,3.17115]
[1731791560103,3.38580007,3154.0,3153.5,3.17106]
[1731791560687,0.21522007,3154.0,3153.5,3.17106]
[1731791560892,0.1518,3154.0,3153.6,3.17096]
[1731791561133,3.17008,3154.5,3153.8,3.17068]
[1731791561134,0.1518,3154.4,3153.8,3.17068]
[1731791561287,0.21522007,3154.4,3153.8,3.17068]
[1731791561640,3.32199,3154.4,3153.8,3.17068]
[1731791561937,0.06342007,3154.3,3153.8,3.17068]
[1731791562153,0.06342007,3154.3,3153.6,3.97684]
[1731791562154,3.23376007,3154.3,3153.6,3.9768]
[1731791562914,3.23376007,3154.3,3153.7,3.1708]
[1731791563342,0.06342007,3154.3,3153.8,3.1707]
[1731791564441,3.32197,3154.4,3153.9,3.17066]
[1731791564849,0.06342007,3154.3,3153.7,3.1708]
[1731791564996,3.32197,3154.4,3153.8,3.17069]
[1731791565337,3.32197,3154.4,3153.9,3.17067]
[1731791565553,0.1518,3154.4,3153.9,3.17061]
[1731791566035,3.38540007,3154.4,3153.8,3.17069]
[1731791566236,3.17028,3154.3,3153.7,0.85429531]
[1731791566435,3.17028,3154.3,3153.7,3.17084]
[1731791567251,3.17044,3154.2,3153.6,3.9319821]
[1731791567457,0.1518,3154.0,3153.6,3.7611021]
[1731791567616,0.1518,3154.0,3153.6,0.7611021]
[1731791567951,0.1518,3154.0,3153.6,3.9320221]
[1731791568328,0.1518,3154.0,3153.7,3.17087]
[1731791570453,0.21522007,3154.0,3153.1,1.40036493]
[1731791570664,0.1518,3153.4,3152.8,3.93551]
[1731791570818,0.1518,3153.4,3153.0,3.17151]
[1731791571038,0.1518,3153.4,3152.9,0.393551]
[1731791571266,0.1518,3153.4,3152.9,3.565201]
[1731791571466,0.1518,3153.4,3153.0,3.17156]
[1731791571674,0.1518,3153.4,3153.0,3.78943412]
[1731791572280,0.1518,3153.4,3153.0,0.61787412]
[1731791574737,3.32298,3153.4,3153.0,0.61787412]
[1731791575067,3.32298,3153.4,3152.9,3.17166]
[1731791575787,3.32298,3153.4,3152.9,3.80560274]
[1731791575994,0.1518,3153.4,3152.9,0.63394274]
[1731791576292,0.1518,3153.4,3153.1,3.17146]
[1731791577751,0.1518,3153.4,3152.9,0.63394274]
[1731791578086,0.1518,3153.4,3152.9,3.55216527]
[1731791578249,0.1518,3153.4,3153.0,3.1715]
[1731791579163,0.1518,3153.4,3153.2,3.17137]
[1731791580595,0.1518,3153.4,3153.3,3.17128]
[1731791580764,3.17061,3154.0,3153.3,3.17128]
[1731791580765,0.1518,3154.0,3153.5,3.17102]
[1731791580959,0.1518,3154.0,3153.1,0.8272246]
[1731791580960,3.17079,3153.8,3153.1,3.93523]
[1731791581172,0.21522007,3153.7,3153.0,6.17157]
[1731791581379,3.17106,3153.6,3153.0,3.17157]
[1731791581548,0.06342007,3153.5,3153.0,3.17157]
[1731791581907,3.23450007,3153.5,3153.0,3.17157]
[1731791582492,0.06342007,3153.5,3153.0,3.17157]
[1731791583449,3.23456007,3153.5,3152.8,6.34347]
[1731791583885,3.23456007,3153.5,3152.8,3.17172]
[1731791584085,3.23456007,3153.5,3152.9,3.17165]
[1731791584587,0.06342007,3153.5,3152.9,3.17165]
[1731791584804,0.06342007,3153.5,3152.8,3.17172]
[1731791584964,3.17131,3153.3,3152.7,6.79562413]
[1731791585459,3.23473007,3153.3,3152.7,6.79562413]
[1731791585949,3.17146,3153.2,3152.7,3.62376413]
[1731791586155,3.23473007,3153.3,3152.7,3.0]
[1731791586489,0.06342007,3153.2,3152.7,3.0]
[1731791587708,0.06342007,3153.2,3152.7,6.17185]
[1731791587889,3.38640007,3153.4,3152.8,3.17171]
[1731791588197,3.17129,3153.3,3152.6,9.3438]
[1731791588495,0.06342007,3153.2,3152.6,6.17189]
[1731791588964,3.17129,3153.3,3152.7,3.23525035]
[1731791589168,3.17129,3153.3,3152.8,3.17176]
[1731791589603,0.21522007,3153.4,3152.8,3.17176]
[1731791589813,3.38640007,3153.4,3152.8,3.17176]
[1731791590317,0.21522007,3153.4,3152.8,1.07095027]
[1731791590523,3.17091,3153.7,3153.1,3.17147]
[1731791590671,0.1518,3153.6,3153.1,3.17147]
[1731791590875,3.32286,3153.6,3153.0,3.1715]
[1731791591076,3.38628007,3153.6,3153.0,3.1715]
[1731791591903,3.38628007,3153.6,3153.1,3.17147]
[1731791592100,0.1518,3153.6,3153.1,3.17147]
[1731791592312,0.1518,3153.6,3153.3,3.17124]
[1731791592474,0.1518,3153.8,3153.3,3.17124]
[1731791592895,0.1518,3153.8,3153.2,3.17136]
[1731791593122,0.1518,3153.8,3153.4,3.17117]
[1731791593677,0.1518,3153.8,3153.7,3.17087]
[1731791593891,0.1518,3154.1,3153.7,3.17087]
[1731791594924,0.1518,3154.1,3153.7,3.23428474]
[1731791595229,0.1518,3154.1,3153.8,3.17074]
[1731791595992,0.1518,3154.1,3153.7,3.49429847]
[1731791595993,0.1518,3154.3,3153.7,0.32342847]
[1731791596316,0.1518,3154.3,3153.9,3.17058]
[1731791597454,0.1518,3154.3,3154.0,3.17055]
[1731791597656,0.1518,3154.3,3154.1,3.17047]
[1731791598315,0.1518,3154.3,3153.9,3.17058]
[1731791599642,0.1518,3154.3,3154.0,3.17055]
[1731791599843,0.1518,3154.3,3154.0,0.634113]
[1731791600011,0.1518,3154.7,3154.6,3.16997]
[1731791600209,0.1518,3154.9,3154.7,3.16981]
[1731791600457,139.5455,3155.0,3154.7,3.16978]
[1731791600765,139.5455,3155.0,3154.6,3.16997]
[1731791600914,139.5455,3155.0,3154.5,3.17003]
[1731791601558,0.1518,3154.8,3154.5,3.17004]
[1731791602128,0.1518,3154.8,3154.6,3.16996]
[1731791602322,0.1518,3154.8,3154.3,3.17023]
[1731791602825,0.1518,3154.8,3154.3,3.17019]
[1731791604407,0.1518,3154.8,3154.3,6.34038]
[1731791604666,0.1518,3154.8,3154.3,3.17019]
[1731791604992,0.1518,3154.8,3154.5,3.17001]
[1731791605547,0.1518,3154.8,3154.3,3.17019]
[1731791606056,3.32162,3154.8,3154.2,3.63628442]
[1731791606581,0.1518,3154.8,3154.4,3.17017]
[1731791606771,0.1518,3154.8,3154.5,3.17006]
[1731791607966,0.1518,3154.8,3154.5,0.64037188]
[1731791608166,0.1518,3154.8,3154.5,3.81042188]
[1731791609388,0.1518,3154.8,3154.6,3.16997]
[1731791609598,0.1518,3154.8,3154.4,3.17014]
[1731791609804,0.1518,3154.8,3154.3,3.17022]
[1731791610391,0.1518,3154.8,3154.4,3.17017]
[1731791610597,0.1518,3154.8,3154.3,3.23361887]
[1731791610764,0.1518,3154.8,3154.3,7.0908092]
[1731791611593,0.1518,3154.8,3154.3,3.9205892]
[1731791612158,0.1518,3154.8,3154.3,7.0907792]
[1731791612715,0.1518,3154.8,3154.3,3.9205792]
[1731791613019,0.1518,3154.8,3154.3,6.34036]
[1731791614377,0.1518,3154.8,3154.3,3.17017]
[1731791614677,0.1518,3154.8,3154.3,6.34038]
[1731791614929,0.1518,3154.8,3154.3,3.17017]
[1731791615270,3.32163,3154.8,3154.2,6.80665442]
[1731791615501,3.16995,3154.7,3154.2,3.63628442]
[1731791615703,3.17019,3154.4,3153.9,3.17066]
[1731791615882,0.06342007,3154.3,3153.7,3.17086]
[1731791616084,3.17019,3154.4,3153.7,3.564286]
[1731791616315,3.17019,3154.4,3153.9,3.17064]
[1731791616486,0.06342007,3154.3,3153.7,3.17086]
[1731791616690,0.1518,3154.0,3153.5,3.17102]
[1731791616888,3.32244,3154.0,3153.3,3.93467]
[1731791617092,3.171,3153.6,3153.1,3.66742087]
[1731791617310,0.21522007,3153.7,3153.2,3.17137]
[1731791617476,0.21522007,3153.7,3153.1,3.66742087]
[1731791617682,0.21522007,3153.7,3153.2,3.17137]
[1731791618282,0.21522007,3153.7,3153.1,3.66742087]
[1731791618478,3.17058,3154.0,3153.1,4.16436888]
[1731791618709,3.17085,3153.8,3153.1,4.16436888]
[1731791619121,3.17085,3153.8,3153.1,4.16432888]
[1731791619326,3.1709,3153.7,3153.1,4.16432888]
[1731791619491,3.1709,3153.7,3153.2,3.17135]
[1731791619696,3.1709,3153.7,3153.2,0.73356789]
[1731791619897,3.1709,3153.7,3153.2,3.17137]
[1731791621132,3.17062,3154.0,3153.2,3.17137]
[1731791621329,3.17084,3153.8,3153.2,3.17137]
[1731791622099,3.17076,3153.9,3153.2,3.17137]
[1731791622300,3.17079,3153.8,3153.2,3.17137]
[1731791622613,3.17079,3153.8,3153.2,3.91840144]
[1731791623017,3.1705,3154.1,3153.2,0.74703144]
[1731791623218,3.1705,3154.1,3153.1,0.49598087]
[1731791623957,3.17094,3153.7,3153.1,0.49598087]
[1731791624116,3.17109,3153.5,3153.1,0.49598087]
[1731791624443,3.17123,3153.4,3152.8,3.93515]
[1731791624652,3.17123,3153.4,3152.9,0.710699]
[1731791624945,3.17062,3154.0,3152.8,0.7634]
[1731791625243,3.17144,3153.2,3152.6,0.49614924]
[1731791625601,3.1715,3153.1,3152.6,0.49614924]
[1731791626020,3.1715,3153.1,3152.5,3.17206]
[1731791626237,3.17152,3153.1,3152.4,3.17215]
[1731791626411,3.17152,3153.1,3152.5,3.567125]
[1731791626750,3.17152,3153.1,3152.5,0.395065]
[1731791627991,3.1713,3153.3,3152.7,3.17185]
[1731791628136,3.17121,3153.4,3152.7,3.17184]
[1731791628338,3.17109,3153.5,3152.7,3.8457315]
[1731791629068,3.17109,3153.5,3152.8,3.17171]
[1731791629391,3.17118,3153.4,3152.8,3.17171]
[1731791629549,3.17128,3153.3,3152.7,0.6738915]
[1731791629735,3.17128,3153.3,3152.7,3.8457015]
[1731791629936,3.17101,3153.6,3152.8,1.48026115]
[1731791630145,3.17101,3153.6,3153.0,3.17158]
[1731791631315,3.1708,3153.8,3153.1,3.17148]
[1731791631601,3.1708,3153.8,3153.2,3.17136]
[1731791632097,3.17028,3154.3,3153.7,3.17087]
[1731791632247,3.17021,3154.4,3153.8,3.804896]
[1731791632452,3.17021,3154.4,3153.8,3.17072]
[1731791632658,3.17035,3154.3,3153.6,3.17089]
[1731791632886,3.17021,3154.4,3153.6,3.17089]
[1731791633098,3.17021,3154.4,3153.8,3.17074]
[1731791633399,3.17027,3154.3,3153.6,6.3418]
[1731791633608,3.17021,3154.4,3153.6,3.80507]
[1731791633778,3.17021,3154.4,3153.7,3.17085]
[1731791633979,3.16999,3154.6,3153.8,3.17075]
[1731791634159,3.16999,3154.6,3153.9,3.17061]
[1731791634563,3.17016,3154.5,3153.8,3.94925]
[1731791634856,3.17021,3154.4,3153.8,0.7785]
[1731791635129,3.17038,3154.2,3153.5,3.94948]
[1731791635440,3.17038,3154.2,3153.6,3.883011]
[1731791636424,3.17008,3154.5,3153.7,3.23427548]
[1731791636638,6.34025,3154.5,3153.9,3.17067]
[1731791637640,3.17008,3154.5,3153.9,3.17067]
[1731791640799,3.16991,3154.7,3154.0,3.1705]
[1731791641003,3.17009,3154.5,3153.8,3.17071]
[1731791641317,3.17009,3154.5,3153.8,3.8760701]
[1731791641904,3.17019,3154.4,3153.8,3.8760701]
[1731791642367,3.17028,3154.3,3153.8,3.8760701]
[1731791642493,3.17015,3154.5,3153.2,3.81836158]
[1731791642756,3.17074,3153.9,3153.2,3.93416]
[1731791643054,3.1708,3153.8,3153.2,0.7628]
[1731791643697,3.17052,3154.1,3153.3,3.17126]
[1731791643902,3.0,3154.5,3153.9,3.1706]
[1731791644194,139.5455,3155.0,3153.9,3.1706]
[1731791644195,3.16979,3154.8,3154.1,3.17047]
[1731791644402,3.16987,3154.7,3154.1,3.17047]
[1731791644599,3.16987,3154.7,3154.1,3.804577]
[1731791644899,3.17009,3154.5,3153.9,3.1706]
[1731791645195,3.1699,3154.7,3153.9,3.1706]
[1731791645396,3.1699,3154.7,3154.1,3.1704]
[1731791645897,3.1699,3154.7,3153.9,3.17067]
[1731791645898,3.16998,3154.6,3153.9,6.34128]
[1731791646199,3.16998,3154.6,3154.0,0.710408]
[1731791647855,3.17008,3154.5,3154.0,0.710408]
[1731791648102,3.1699,3154.7,3154.0,3.880958]
[1731791648260,3.16997,3154.6,3154.0,3.880958]
[1731791649874,139.5455,3155.0,3154.0,0.710408]
[1731791650194,3.16974,3154.9,3154.3,3.93306]
[1731791650359,6.3395,3154.9,3154.3,0.7628]
[1731791650872,3.16981,3154.8,3154.3,0.7628]
[1731791651291,3.16974,3154.9,3154.3,3.93306]
[1731791651489,139.5455,3155.0,3154.3,3.93306]
[1731791651490,142.71507,3155.0,3154.4,3.17013]
[1731791652371,139.5455,3155.0,3154.4,3.880453]
[1731791653293,139.5455,3155.0,3154.6,3.16991]
[1731791653609,139.5455,3155.0,3154.7,0.7628]
[1731791657308,142.71508,3155.0,3154.7,0.7628]
[1731791657667,139.5455,3155.0,3154.7,0.7628]
[1731791659017,142.7151,3155.0,3154.7,0.7628]
[1731791662955,139.5455,3155.0,3154.7,3.93266]
[1731791663166,139.5455,3155.0,3154.8,3.16974]
[1731791663456,139.5455,3155.0,3154.9,3.16967]
[1731791664202,139.5455,3155.0,3154.7,4.325846]
[1731791667653,139.5455,3155.0,3154.7,7.495636]
[1731791667952,139.5455,3155.0,3154.7,4.325846]
[1731791668547,139.5455,3155.0,3154.8,3.16973]
[1731791668751,139.5455,3155.0,3154.8,3.9192876]
[1731791668952,139.5455,3155.0,3154.9,3.16967]
[1731791669844,139.5455,3155.0,3154.9,5.22779911]
[1731791673179,139.5455,3155.0,3154.9,3.92647]
[1731791675221,139.5455,3155.0,3154.9,3.16967]
[1731791677283,139.5455,3155.0,3154.9,4.75279636]
[1731791677614,139.5455,3155.0,3154.9,6.05412547]
[1731791678123,139.5455,3155.0,3154.9,9.60412547]
[1731791680925,139.5455,3155.0,3154.9,8.30279636]
[1731791687644,139.5455,3155.0,3154.9,6.99379636]
[1731791691044,139.5455,3155.0,3154.9,6.16967]
[1731791697150,139.5455,3155.0,3154.9,3.16967]
[1731791697516,139.5455,3155.0,3154.7,6.732836]
[1731791697718,139.5455,3155.0,3154.7,3.16977]
[1731791697957,139.5455,3155.0,3154.6,0.62467734]
[1731791698749,139.5455,3155.0,3154.7,3.16978]
[1731791698912,139.5455,3155.0,3154.9,3.16967]
[1731791704682,139.5455,3155.0,3154.9,7.50267]
[1731791704961,139.5455,3155.0,3154.9,8.88149055]
[1731791710560,139.5455,3155.0,3154.9,7.54849055]
[1731791713252,139.5455,3155.0,3154.9,8.85839055]
[1731791714166,139.5455,3155.0,3154.9,9.17499055]
[1731791715862,130.05652318,3155.0,3154.9,9.17499055]
[1731791716066,116.90048148,3155.0,3154.9,12.44451616]
[1731791716372,113.34427127,3155.0,3154.9,11.12817]
[1731791716545,108.29963353,3155.0,3154.9,12.44613082]
[1731791716755,104.49005353,3155.0,3154.9,12.44613082]
[1731791717647,102.45666353,3155.0,3154.9,12.44613082]
[1731791717870,99.28708353,3155.0,3154.9,12.44613082]
[1731791718120,95.84830353,3155.0,3154.9,12.44613082]
[1731791718543,95.84830353,3155.0,3154.9,12.45613082]
[1731791718694,95.84830353,3155.0,3154.9,7.79617]
[1731791718899,95.84830353,3155.0,3154.9,10.84862676]
[1731791719097,95.84830353,3155.0,3154.9,10.29862676]
[1731791720345,95.84830353,3155.0,3154.9,10.84862676]
[1731791721053,95.84830353,3155.0,3154.9,6.98202676]
[1731791722305,95.84830353,3155.0,3154.9,10.53202676]
[1731791722610,95.84830353,3155.0,3154.9,7.47957]
[1731791723628,95.84830353,3155.0,3154.9,6.71967]
[1731791726915,87.32163487,3155.0,3154.9,10.89187]
[1731791727112,85.73684487,3155.0,3154.9,13.79292382]
[1731791728553,85.73684487,3155.0,3154.9,12.474963]
[1731791728756,85.63437487,3155.0,3154.9,12.474963]
[1731791729062,80.88000487,3155.0,3154.9,13.79292382]
[1731791729295,76.40732487,3155.0,3154.9,13.79292382]
[1731791729564,69.79512766,3155.0,3154.9,16.84538058]
[1731791729776,61.82311262,3155.0,3154.9,16.84538058]
[1731791729969,61.12264003,3155.0,3154.9,16.84538058]
[1731791730129,57.90574003,3155.0,3154.9,13.79292382]
[1731791730485,57.45714003,3155.0,3154.9,13.79292382]
[1731791730683,52.70277003,3155.0,3154.9,13.79292382]
[1731791730819,48.97434298,3155.0,3154.9,13.79292382]
[1731791731260,48.97434298,3155.0,3154.9,12.474963]
[1731791732541,48.97434298,3155.0,3154.9,12.63830993]
[1731791732878,41.05039298,3155.0,3154.9,12.63830993]
[1731791735287,41.05039298,3155.0,3154.9,12.474963]
[1731791736286,41.05039298,3155.0,3154.9,9.132963]
[1731791736655,41.05039298,3155.0,3154.9,3.16967]
[1731791738126,41.05039298,3155.0,3154.9,6.71967]
[1731791738305,41.05039298,3155.0,3154.9,3.48627]
[1731791738306,41.80639298,3155.0,3154.9,3.48627]
[1731791739421,41.05039298,3155.0,3154.9,3.48627]
[1731791739625,41.05039298,3155.0,3154.9,7.03627]
[1731791741606,41.05039298,3155.0,3154.9,7.09965305]
[1731791742177,41.05039298,3155.0,3154.9,11.16617]
[1731791742425,41.05039298,3155.0,3154.9,11.17617]
[1731791742426,36.29602298,3155.0,3154.9,11.17617]
[1731791742727,36.29602298,3155.0,3154.9,12.49413082]
[1731791743505,33.12644298,3155.0,3154.9,12.49413082]
[1731791744583,33.12644298,3155.0,3154.9,11.17617]
[1731791745324,33.12644298,3155.0,3154.9,11.16617]
[1731791745508,33.12644298,3155.0,3154.9,11.15617]
[1731791745710,33.12644298,3155.0,3154.9,7.83417]
[1731791746237,33.12644298,3155.0,3154.9,7.89755214]
[1731791746885,33.12644298,3155.0,3154.9,11.22955214]
[1731791747130,33.12644298,3155.0,3154.9,11.16617]
[1731791747284,33.12644298,3155.0,3154.9,12.48413082]
[1731791747480,25.20249298,3155.0,3154.9,14.22862676]
[1731791747720,18.86333298,3155.0,3154.9,11.17617]
[1731791748017,17.27854298,3155.0,3154.9,11.17617]
[1731791748267,17.27854298,3155.0,3154.9,18.38712001]
[1731791748468,17.27854298,3155.0,3154.9,16.41260076]
[1731791748767,9.35459298,3155.0,3154.9,16.41260076]
[1731791748976,9.35459298,3155.0,3154.9,15.34088013]
[1731791749320,9.35459298,3155.0,3154.9,13.360144]
[1731791749548,9.30307821,3155.0,3154.9,13.360144]
[1731791749772,9.30307821,3155.0,3154.9,15.34039953]
[1731791750468,1.37912821,3155.0,3154.9,11.17617]
[1731791750783,0.7629,3156.2,3156.1,3.71846]
[1731791751072,0.7629,3156.2,3156.1,6.71846]
[1731791751274,0.7629,3157.0,3156.1,3.55]
[1731791751501,0.7629,3157.0,3156.5,3.16805]
[1731791751978,0.7629,3157.0,3156.7,3.1678]
[1731791752469,0.7629,3157.0,3156.6,3.0633505]
[1731791753480,0.7629,3157.0,3156.9,3.71766]
[1731791753631,0.7629,3157.0,3156.9,6.71766]
[1731791754571,0.7629,3157.6,3157.1,3.16742]
[1731791755036,0.7629,3157.6,3157.3,3.16716]
[1731791755236,0.7629,3157.6,3157.4,3.1671]
[1731791756017,0.7629,3157.6,3157.5,3.16706]
[1731791756315,0.7629,3157.6,3157.3,6.39768884]
[1731791756486,0.7629,3157.6,3157.3,6.33435]
[1731791756880,0.7629,3157.6,3157.5,3.16706]
[1731791758488,0.7629,3157.6,3157.4,6.16715]
[1731791758688,0.7629,3157.6,3157.5,3.16706]
[1731791760420,0.7629,3157.6,3157.2,3.16736]
[1731791760912,0.7629,3157.6,3157.3,3.16719]
[1731791761120,0.7629,3157.6,3157.4,3.16716]
[1731791761345,0.7629,3157.6,3156.9,6.16761]
[1731791761474,0.7629,3157.6,3157.1,3.16741]
[1731791761683,0.7629,3157.6,3157.4,3.16714]
[1731791761876,0.7629,3157.6,3156.9,3.0]
[1731791761877,0.7629,3157.6,3157.2,3.1673]
[1731791762463,0.7629,3157.6,3157.3,3.16722]
[1731791762826,0.7906,3157.5,3156.9,6.16757]
[1731791763157,0.7906,3157.5,3157.1,3.0]
[1731791763379,0.7906,3157.4,3156.6,3.0]
[1731791763684,0.7906,3157.4,3156.9,3.16759]
[1731791763883,0.41005946,3157.5,3156.8,3.0]
[1731791764047,0.7906,3157.4,3156.5,3.05245676]
[1731791764240,1.14830295,3157.4,3156.9,3.16759]
[1731791764478,1.14830295,3157.4,3156.7,3.16782]
[1731791764479,0.7906,3157.3,3156.7,3.16782]
[1731791764631,0.7906,3157.2,3156.7,3.16782]
[1731791765377,0.7906,3157.1,3156.6,3.0]
[1731791765532,0.7906,3157.0,3156.6,3.0]
[1731791766651,0.7906,3157.0,3156.5,0.06335439]
[1731791766862,0.7906,3157.0,3156.9,3.16766]
[1731791767845,0.7906,3157.0,3156.5,3.168]
[1731791768043,0.7906,3157.0,3156.6,3.0]
[1731791768685,0.7906,3157.0,3156.9,3.16766]
[1731791769935,0.7906,3157.0,3156.7,3.16779]
[1731791770385,0.7906,3157.0,3156.8,3.16776]
[1731791770708,0.7906,3157.0,3156.7,3.16779]
[1731791770851,0.7906,3157.0,3156.9,3.16766]
[1731791771567,0.7906,3157.0,3156.7,3.16779]
[1731791771749,0.7906,3157.0,3156.7,6.33558]
[1731791772069,0.7906,3157.0,3156.7,3.16779]
[1731791772423,0.7906,3157.0,3156.8,3.16776]
[1731791772821,3.16697,3157.6,3155.9,1.3825]
[1731791772822,0.00942915,3157.6,3155.9,1.3825]
[1731791773068,0.7906,3156.8,3156.2,3.1683]
[1731791773230,0.7906,3156.7,3156.3,3.16824]
[1731791774713,0.7906,3156.7,3156.3,6.33642]
[1731791775078,0.7906,3156.7,3156.3,3.16818]
[1731791775284,0.7906,3156.7,3156.6,3.16796]
[1731791775476,0.7906,3156.7,3156.1,3.05245676]
[1731791775477,0.7906,3156.7,3156.2,0.06335921]
[1731791775810,0.7906,3156.7,3156.5,3.16804]
[1731791775975,0.7906,3156.7,3156.4,3.16808]
[1731791776805,0.7906,3156.7,3156.5,3.16806]
[1731791777475,0.7906,3156.7,3156.3,3.16819]
[1731791777662,0.7906,3156.7,3156.4,3.16815]
[1731791780661,0.7906,3156.7,3156.2,6.16832]
[1731791780861,0.7906,3156.7,3156.1,6.16846]
[1731791781061,0.7906,3156.6,3156.2,3.16826]
[1731791781515,0.7906,3156.6,3156.4,3.16807]
[1731791782461,0.7906,3156.6,3156.2,3.16836]
[1731791782664,0.7906,3156.6,3156.3,3.16819]
[1731791783474,0.7906,3156.6,3156.2,3.16836]
[1731791783680,0.7906,3156.6,3156.4,3.1681]
[1731791785500,0.7906,3156.6,3156.2,3.16836]
[1731791785739,0.7906,3156.6,3156.3,3.16824]
[1731791785873,0.7906,3156.6,3156.2,3.16836]
[1731791786071,0.7996,3156.5,3155.7,3.16877]
[1731791786264,3.168,3156.6,3155.7,3.16877]
[1731791786265,0.7996,3156.3,3155.8,3.16873]
[1731791786466,0.7996,3156.3,3155.9,3.16866]
[1731791787088,0.7996,3156.3,3155.7,3.16877]
[1731791787283,3.1676,3157.0,3155.4,0.758]
[1731791787284,0.7996,3155.9,3155.4,3.92709]
[1731791787531,0.7996,3155.9,3155.5,6.16905]
[1731791787727,0.7996,3155.9,3155.2,0.758]
[1731791787728,0.7996,3155.9,3155.2,3.16933]
[1731791788436,0.7996,3155.9,3155.4,3.1691]
[1731791788636,0.7996,3155.9,3155.5,3.16905]
[1731791788932,0.7996,3155.9,3155.3,3.0]
[1731791789089,0.7996,3155.7,3155.3,3.0]
[1731791789285,0.7996,3155.7,3155.3,6.16925]
[1731791789727,0.7996,3155.7,3155.1,3.0]
[1731791789927,0.7996,3155.7,3155.3,3.0]
[1731791790491,0.7996,3155.7,3155.3,6.16925]
[1731791790694,0.7996,3155.7,3155.4,3.16911]
[1731791790903,0.7996,3156.5,3155.9,3.1686]
[1731791791224,3.96767,3156.5,3155.9,3.1686]
[1731791791625,3.16816,3156.4,3155.9,3.1686]
[1731791792044,3.16816,3156.4,3155.5,0.758]
[1731791792045,0.7996,3156.2,3155.6,3.16896]
[1731791792395,0.7996,3156.0,3155.4,3.16908]
[1731791793430,3.96819,3156.0,3155.4,3.16908]
[1731791794041,0.7996,3156.0,3155.4,3.16908]
[1731791794241,0.7996,3156.0,3155.6,3.16889]
[1731791795935,0.7996,3156.0,3155.4,6.05245676]
[1731791796139,0.7996,3156.3,3155.4,6.05245676]
[1731791796354,0.7996,3156.3,3155.8,3.16867]
[1731791796497,0.7996,3156.3,3155.6,3.16888]
[1731791796498,3.16836,3156.2,3155.6,3.16888]
[1731791796700,0.7996,3156.1,3155.6,3.16888]
[1731791797646,0.7996,3156.1,3155.7,3.1688]
[1731791798226,0.7996,3156.1,3155.6,3.16888]
[1731791798652,0.7996,3156.1,3155.7,3.16885]
[1731791798832,0.7996,3156.1,3155.6,3.16888]
[1731791799529,0.7996,3156.1,3155.7,3.16885]
[1731791799855,0.7996,3156.1,3155.5,3.169]
[1731791800055,0.7996,3156.1,3155.6,3.16894]
[1731791800563,0.7996,3156.1,3155.9,3.16859]
[1731791801217,0.7996,3156.7,3156.1,3.1684]
[1731791801416,0.7996,3156.7,3156.2,3.16835]
[1731791802440,0.7996,3156.7,3156.3,3.16825]
[1731791802645,0.7996,3156.7,3156.2,3.16835]
[1731791803469,0.7996,3156.7,3156.0,3.16854]
[1731791803470,0.7996,3156.7,3156.1,3.16843]
[1731791803658,1.196337,3156.7,3155.9,3.16859]
[1731791803961,3.16806,3156.6,3155.9,3.16859]
[1731791804138,3.16806,3156.6,3156.0,3.16849]
[1731791804314,0.7779,3156.5,3156.1,3.16844]
[1731791804529,0.7779,3156.5,3156.2,3.16828]
[1731791806974,0.7779,3156.5,3156.0,3.16849]
[1731791807282,0.7779,3156.5,3156.2,3.16835]
[1731791809873,0.7779,3156.5,3156.0,3.16853]
[1731791810251,0.7779,3156.5,3156.1,3.1684]
[1731791810456,0.7779,3156.5,3156.0,3.16853]
[1731791810653,0.7779,3156.5,3156.2,3.16835]
[1731791811079,0.7779,3156.5,3156.3,3.16826]
[1731791811580,0.7779,3156.5,3156.2,3.16835]
[1731791811934,0.7779,3156.5,3156.3,3.16825]
[1731791812544,0.7779,3156.5,3156.2,3.16835]
[1731791812747,0.7779,3156.5,3156.3,3.16825]
[1731791813448,0.7779,3156.5,3156.2,3.16835]
[1731791814072,0.7779,3156.5,3156.2,3.1683]
[1731791814350,0.7779,3156.5,3156.3,3.1682]
[1731791815499,0.7779,3156.5,3156.0,3.16852]
[1731791815693,3.94597,3156.5,3155.9,3.0]